bitfinex/quotes_SOLUSD_20230404
["timestamp","ask_amount","ask_price","bid_price","bid_amount"]
[1680589101774,17.0,20.431,20.417,7.35345008]
[1680589102568,20.0,20.43,20.417,7.35345008]
[1680589102767,17.0,20.429,20.417,7.35345008]
[1680589109263,17.0,20.431,20.417,7.35345008]
[1680589111986,22.85,20.43,20.417,7.35345008]
[1680589112169,17.0,20.429,20.417,7.35345008]
[1680589117418,20.0,20.428,20.417,7.35345008]
[1680589117576,17.0,20.427,20.417,7.35345008]
[1680589119986,17.0,20.428,20.417,7.35345008]
[1680589125675,17.0,20.429,20.417,7.35345008]
[1680589125874,22.85,20.43,20.417,7.35345008]
[1680589126089,111.9945,20.431,20.417,66.71424704]
[1680589127488,17.0,20.43,20.417,66.71424704]
[1680589128887,17.0,20.432,20.417,66.71424704]
[1680589131996,17.0,20.432,20.42,22.73]
[1680589133679,17.0,20.432,20.417,66.71424704]
[1680589133888,20.0,20.431,20.417,66.71424704]
[1680589134086,17.0,20.43,20.417,66.71424704]
[1680589148200,20.0,20.431,20.417,66.71424704]
[1680589148385,17.0,20.43,20.417,66.71424704]
[1680589152010,39.85,20.43,20.417,66.71424704]
[1680589152605,20.0,20.429,20.417,66.71424704]
[1680589152809,17.0,20.428,20.417,66.71424704]
[1680589154404,17.0,20.428,20.417,59.36079696]
[1680589154606,17.0,20.428,20.418,7.35345008]
[1680589165815,17.0,20.429,20.418,7.35345008]
[1680589169210,17.0,20.429,20.42,22.7]
[1680589169603,22.85,20.44,20.42,30.05345008]
[1680589170105,20.0,20.435,20.42,30.05345008]
[1680589170921,17.0,20.434,20.42,30.05345008]
[1680589171718,20.0,20.433,20.42,30.05345008]
[1680589171920,17.0,20.432,20.42,30.05345008]
[1680589175622,17.0,20.434,20.42,30.05345008]
[1680589186518,20.0,20.433,20.42,30.05345008]
[1680589186720,17.0,20.432,20.42,30.05345008]
[1680589189034,17.0,20.434,20.42,30.05345008]
[1680589189634,20.0,20.433,20.42,30.05345008]
[1680589189835,17.0,20.432,20.42,30.05345008]
[1680589191832,17.0,20.434,20.42,30.05345008]
[1680589197646,20.0,20.433,20.42,30.05345008]
[1680589197848,17.0,20.432,20.42,30.05345008]
[1680589198931,17.0,20.434,20.42,30.05345008]
[1680589199442,20.0,20.433,20.42,30.05345008]
[1680589199637,17.0,20.432,20.42,30.05345008]
[1680589201444,17.0,20.434,20.42,30.05345008]
[1680589202547,20.0,20.433,20.42,30.05345008]
[1680589202746,17.0,20.432,20.42,30.05345008]
[1680589203439,17.0,20.434,20.42,30.05345008]
[1680589204042,116.4895,20.437,20.421,20.0]
[1680589204251,17.0,20.436,20.421,20.0]
[1680589204445,17.0,20.436,20.423,20.0]
[1680589204751,17.0,20.436,20.424,20.0]
[1680589204950,17.0,20.436,20.424,27.35345008]
[1680589205141,17.0,20.436,20.425,7.35345008]
[1680589205738,17.0,20.437,20.425,7.35345008]
[1680589207456,17.0,20.438,20.425,7.35345008]
[1680589207837,17.0,20.439,20.425,7.35345008]
[1680589216856,14.65266027,20.44,20.43,22.71]
[1680589217045,19.576527,20.445,20.43,22.71]
[1680589217247,20.0,20.444,20.43,22.71]
[1680589218340,17.0,20.443,20.43,22.71]
[1680589220250,37.0,20.443,20.43,22.71]
[1680589220648,17.0,20.443,20.43,22.71]
[1680589230469,20.0,20.444,20.43,22.71]
[1680589230873,20.0,20.445,20.43,22.71]
[1680589232062,17.0,20.444,20.43,22.71]
[1680589246775,20.0,20.443,20.43,22.71]
[1680589246966,20.0,20.441,20.43,22.71]
[1680589247167,17.0,20.44,20.43,22.71]
[1680589251982,17.0,20.44,20.427,112.6742]
[1680589252385,17.0,20.44,20.427,120.02765008]
[1680589254287,17.0,20.442,20.427,120.02765008]
[1680589254587,20.0,20.441,20.427,120.02765008]
[1680589254788,17.0,20.44,20.427,120.02765008]
[1680589256577,17.0,20.442,20.427,120.02765008]
[1680589258194,20.0,20.441,20.427,120.02765008]
[1680589258391,17.0,20.44,20.427,120.02765008]
[1680589259901,39.82,20.44,20.425,59.36079696]
[1680589260191,40.0,20.439,20.421,54.04073125]
[1680589260393,40.0,20.439,20.42,22.6]
[1680589260591,17.0,20.438,20.42,22.6]
[1680589260891,20.0,20.436,20.42,22.6]
[1680589261096,37.0,20.435,20.42,22.6]
[1680589261787,37.0,20.435,20.421,7.35345008]
[1680589267694,20.0,20.435,20.421,7.35345008]
[1680589268408,20.0,20.436,20.421,7.35345008]
[1680589268982,17.0,20.435,20.421,7.35345008]
[1680589269187,20.0,20.434,20.421,7.35345008]
[1680589269387,37.0,20.433,20.421,7.35345008]
[1680589270501,17.0,20.433,20.421,7.35345008]
[1680589271503,20.0,20.432,20.421,7.35345008]
[1680589271706,17.0,20.431,20.421,7.35345008]
[1680589280192,17.0,20.431,20.415,19.592]
[1680589280394,17.0,20.431,20.417,7.35345008]
[1680589286212,17.0,20.431,20.413,100.21080453]
[1680589288919,17.0,20.431,20.417,7.35345008]
[1680589299930,17.0,20.431,20.42,22.6]
[1680589300315,17.0,20.431,20.42,29.95345008]
[1680589312835,37.0,20.431,20.42,29.95345008]
[1680589313029,17.0,20.431,20.42,29.95345008]
[1680589323032,37.0,20.431,20.42,29.95345008]
[1680589323219,17.0,20.431,20.42,29.95345008]
[1680589323424,114.9932,20.432,20.42,29.95345008]
[1680589323637,17.0,20.431,20.42,29.95345008]
[1680589325243,20.0,20.43,20.42,22.6]
[1680589325536,17.0,20.429,20.42,22.6]
[1680589326135,17.0,20.429,20.417,7.35345008]
[1680589327643,20.0,20.428,20.417,7.35345008]
[1680589327832,17.0,20.427,20.417,7.35345008]
[1680589334867,17.0,20.427,20.41,22.71]
[1680589335054,20.0,20.426,20.413,7.35345008]
[1680589335242,20.0,20.426,20.414,20.0]
[1680589335445,17.0,20.425,20.414,20.0]
[1680589336239,17.0,20.425,20.414,27.35345008]
[1680589343166,17.0,20.425,20.414,27.35345008]
[1680589353471,17.0,20.425,20.414,20.0]
[1680589353680,17.0,20.425,20.412,7.35345008]
[1680589353864,17.0,20.427,20.413,20.0]
[1680589358576,17.0,20.427,20.413,27.35345008]
[1680589360675,42.64,20.43,20.413,27.35345008]
[1680589362578,17.0,20.429,20.413,27.35345008]
[1680589364976,20.0,20.428,20.413,27.35345008]
[1680589365180,17.0,20.427,20.413,27.35345008]
[1680589375790,17.0,20.429,20.413,27.35345008]
[1680589390025,27.00084239,20.437,20.416,19.592]
[1680589390300,20.0,20.436,20.416,19.592]
[1680589390506,20.0,20.436,20.416,26.94545008]
[1680589391506,37.0,20.431,20.416,26.94545008]
[1680589391702,17.0,20.431,20.416,26.94545008]
[1680589392093,17.0,20.431,20.416,137.18645008]
[1680589392810,17.0,20.432,20.416,137.18645008]
[1680589393011,20.0,20.431,20.416,137.18645008]
[1680589393202,17.0,20.43,20.416,137.18645008]
[1680589399010,17.0,20.43,20.416,117.59445008]
[1680589400610,17.0,20.432,20.416,117.59445008]
[1680589410144,20.0,20.431,20.416,117.59445008]
[1680589410345,17.0,20.43,20.416,117.59445008]
[1680589422051,39.82,20.43,20.416,117.59445008]
[1680589422443,20.0,20.429,20.416,117.59445008]
[1680589422645,17.0,20.428,20.416,117.59445008]
[1680589425256,17.0,20.428,20.416,110.241]
[1680589425553,20.0,20.427,20.416,110.241]
[1680589425854,17.0,20.426,20.416,110.241]
[1680589426944,17.0,20.428,20.416,110.241]
[1680589429844,20.0,20.429,20.416,110.241]
[1680589430465,22.82,20.43,20.416,117.59445008]
[1680589431062,22.82,20.43,20.416,110.241]
[1680589431768,17.0,20.429,20.416,117.59445008]
[1680589439866,20.0,20.428,20.416,117.59445008]
[1680589440050,17.0,20.427,20.416,117.59445008]
[1680589443570,17.0,20.429,20.416,117.59445008]
[1680589444350,20.0,20.428,20.416,117.59445008]
[1680589444555,17.0,20.427,20.416,117.59445008]
[1680589445571,17.0,20.429,20.416,117.59445008]
[1680589445774,20.0,20.428,20.416,117.59445008]
[1680589445956,17.0,20.427,20.416,117.59445008]
[1680589448261,34.34212434,20.434,20.416,137.18545008]
[1680589449368,34.34212434,20.434,20.42,22.71]
[1680589449569,17.0,20.433,20.42,22.71]
[1680589458473,20.0,20.432,20.42,22.71]
[1680589458669,17.0,20.431,20.42,22.71]
[1680589459591,20.0,20.43,20.42,22.71]
[1680589459776,17.0,20.429,20.42,22.71]
[1680589460182,17.0,20.429,20.416,117.59445008]
[1680589461496,20.0,20.428,20.416,117.59445008]
[1680589461676,17.0,20.427,20.416,117.59445008]
[1680589461878,17.0,20.427,20.416,110.241]
[1680589463388,42.64,20.43,20.416,110.241]
[1680589463583,22.64,20.43,20.416,110.241]
[1680589464678,17.0,20.429,20.416,110.241]
[1680589465392,17.0,20.431,20.416,110.241]
[1680589467692,20.0,20.43,20.416,110.241]
[1680589467893,17.0,20.429,20.416,110.241]
[1680589476609,20.0,20.43,20.416,110.241]
[1680589476913,20.0,20.43,20.416,117.59445008]
[1680589478017,17.0,20.429,20.416,117.59445008]
[1680589482010,17.0,20.429,20.416,137.18545008]
[1680589482216,17.0,20.431,20.416,137.18545008]
[1680589483800,17.0,20.432,20.416,137.18545008]
[1680589489018,37.0,20.433,20.416,137.18545008]
[1680589489217,17.0,20.433,20.416,137.18545008]
[1680589489517,37.0,20.433,20.416,137.18545008]
[1680589492320,20.0,20.432,20.416,137.18545008]
[1680589492517,17.0,20.431,20.416,137.18545008]
[1680589494304,17.0,20.432,20.416,137.18545008]
[1680589502322,20.0,20.431,20.416,117.59445008]
[1680589502516,17.0,20.43,20.416,117.59445008]
[1680589504215,17.0,20.43,20.416,110.241]
[1680589504725,20.0,20.429,20.416,110.241]
[1680589505028,17.0,20.428,20.416,110.241]
[1680589506014,20.0,20.427,20.416,110.241]
[1680589506215,17.0,20.426,20.416,110.241]
[1680589512831,20.0,20.425,20.416,110.241]
[1680589513033,37.0,20.424,20.416,110.241]
[1680589517540,37.0,20.424,20.408,111.0881]
[1680589518434,20.0,20.423,20.408,111.0881]
[1680589518628,17.0,20.422,20.408,111.0881]
[1680589522041,20.0,20.421,20.408,111.0881]
[1680589522240,17.0,20.42,20.408,111.0881]
[1680589522840,20.0,20.419,20.408,111.0881]
[1680589523028,17.0,20.418,20.408,111.0881]
[1680589527741,17.0,20.419,20.408,111.0881]
[1680589534755,20.0,20.418,20.405,117.7066]
[1680589534944,17.0,20.417,20.405,117.7066]
[1680589538358,20.0,20.416,20.405,117.7066]
[1680589538553,20.0,20.414,20.405,117.7066]
[1680589538855,20.0,20.412,20.405,117.7066]
[1680589539057,17.0,20.411,20.405,117.7066]
[1680589540550,17.0,20.413,20.405,117.7066]
[1680589542242,17.0,20.414,20.405,117.7066]
[1680589563169,37.0,20.415,20.405,117.7066]
[1680589563371,20.0,20.414,20.405,117.7066]
[1680589563557,17.0,20.413,20.405,117.7066]
[1680589564363,20.0,20.412,20.405,117.7066]
[1680589564558,17.0,20.411,20.405,117.7066]
[1680589572770,31.7627576,20.411,20.405,117.7066]
[1680589586793,31.7627576,20.411,20.405,117.7066]
[1680589593687,20.0,20.414,20.405,117.7066]
[1680589593891,20.0,20.415,20.405,117.7066]
[1680589594083,20.0,20.416,20.405,117.7066]
[1680589595089,17.0,20.415,20.405,117.7066]
[1680589595587,20.0,20.414,20.405,117.7066]
[1680589595800,17.0,20.413,20.405,117.7066]
[1680589603298,20.0,20.414,20.405,117.7066]
[1680589603507,20.0,20.42,20.406,20.0]
[1680589604694,20.0,20.42,20.405,117.7066]
[1680589605304,17.0,20.419,20.405,117.7066]
[1680589605486,20.0,20.418,20.405,117.7066]
[1680589605692,17.0,20.417,20.405,117.7066]
[1680589612308,17.0,20.419,20.405,117.7066]
[1680589612719,17.0,20.42,20.405,117.7066]
[1680589616019,17.0,20.421,20.405,117.7066]
[1680589624510,17.0,20.421,20.406,20.0]
[1680589624709,17.0,20.421,20.41,22.85]
[1680589644433,14.51397967,20.422,20.41,22.85]
[1680589644434,14.51397967,20.422,20.411,40.0]
[1680589644739,110.7584,20.429,20.411,40.0]
[1680589644927,110.7584,20.429,20.411,47.35345008]
[1680589646148,17.0,20.428,20.411,47.35345008]
[1680589646945,17.0,20.428,20.411,40.0]
[1680589648147,57.35398,20.43,20.411,40.0]
[1680589648344,34.51398,20.43,20.413,20.0]
[1680589648552,34.51398,20.43,20.414,20.0]
[1680589649547,17.0,20.429,20.414,20.0]
[1680589651350,17.0,20.429,20.415,20.0]
[1680589651533,14.34212434,20.434,20.415,20.0]
[1680589651738,17.0,20.433,20.416,112.2974]
[1680589651937,20.0,20.433,20.416,112.2974]
[1680589652139,17.0,20.432,20.42,22.85]
[1680589655643,17.0,20.433,20.42,22.85]
[1680589656054,20.0,20.433,20.42,22.85]
[1680589656250,17.0,20.432,20.42,22.85]
[1680589661546,17.0,20.433,20.42,22.85]
[1680589663744,17.0,20.434,20.42,22.85]
[1680589663946,37.0,20.434,20.42,22.85]
[1680589664755,17.0,20.434,20.42,22.85]
[1680589667064,34.80779246,20.435,20.42,22.85]
[1680589667254,20.0,20.434,20.42,22.85]
[1680589671062,20.0,20.434,20.422,20.0]
[1680589671663,20.0,20.434,20.421,17.0]
[1680589673964,34.80779246,20.435,20.422,20.0]
[1680589674174,34.80779246,20.435,20.423,20.0]
[1680589674352,34.80779246,20.435,20.424,20.0]
[1680589677062,20.0,20.435,20.424,20.0]
[1680589679171,20.0,20.435,20.425,20.0]
[1680589681660,20.0,20.448,20.425,20.0]
[1680589681861,17.0,20.44,20.425,20.0]
[1680589682164,17.0,20.44,20.43,22.85]
[1680589683268,127.82656474,20.441,20.43,22.85]
[1680589683571,14.57316474,20.441,20.43,22.85]
[1680589683769,58.67951534,20.448,20.43,22.85]
[1680589683770,38.67951534,20.448,20.43,22.85]
[1680589683979,129.9102,20.447,20.43,22.85]
[1680589685074,37.0,20.446,20.43,22.85]
[1680589685385,20.0,20.445,20.43,22.85]
[1680589685576,17.0,20.444,20.43,22.85]
[1680589686779,20.0,20.443,20.43,22.85]
[1680589686963,17.0,20.442,20.43,22.85]
[1680589687167,17.0,20.442,20.43,28.5]
[1680589691883,17.0,20.443,20.43,28.5]
[1680589695184,17.0,20.443,20.427,114.4276]
[1680589695980,20.0,20.442,20.427,114.4276]
[1680589696278,20.0,20.44,20.427,114.4276]
[1680589696481,17.0,20.439,20.427,114.4276]
[1680589716086,17.0,20.438,20.427,114.4276]
[1680589716287,17.0,20.441,20.427,114.4276]
[1680589717699,20.0,20.44,20.427,114.4276]
[1680589718002,17.0,20.439,20.427,114.4276]
[1680589718504,17.0,20.441,20.427,114.4276]
[1680589721112,14.50087902,20.443,20.427,114.4276]
[1680589721291,20.0,20.444,20.427,114.4276]
[1680589722407,205.01847893,20.449,20.427,114.4276]
[1680589722707,17.0,20.444,20.427,114.4276]
[1680589723700,37.0,20.444,20.427,114.4276]
[1680589724896,17.0,20.444,20.427,114.4276]
[1680589727005,20.0,20.443,20.427,114.4276]
[1680589727403,54.65091567,20.445,20.427,114.4276]
[1680589727606,20.0,20.444,20.427,114.4276]
[1680589728916,17.0,20.443,20.427,114.4276]
[1680589733012,17.0,20.443,20.428,17.0]
[1680589734899,37.0,20.444,20.428,17.0]
[1680589736016,20.0,20.444,20.428,17.0]
[1680589737214,34.65091567,20.445,20.428,17.0]
[1680589737416,17.0,20.444,20.428,17.0]
[1680589742224,17.0,20.444,20.43,28.33]
[1680589743524,34.65091567,20.445,20.43,28.33]
[1680589747128,34.65091567,20.445,20.43,22.79]
[1680589749341,20.0,20.443,20.43,22.79]
[1680589749639,17.0,20.442,20.43,22.79]
[1680589756745,20.0,20.441,20.43,22.79]
[1680589756951,17.0,20.44,20.43,22.79]
[1680589758145,17.0,20.442,20.43,22.79]
[1680589760556,17.0,20.442,20.427,114.4276]
[1680589760557,22.8,20.44,20.427,114.4276]
[1680589760752,17.0,20.439,20.427,114.4276]
[1680589760956,20.0,20.438,20.427,114.4276]
[1680589761154,17.0,20.437,20.427,114.4276]
[1680589778658,17.0,20.437,20.424,20.0]
[1680589778963,20.0,20.436,20.421,20.0]
[1680589779151,17.0,20.435,20.421,20.0]
[1680589780070,20.0,20.434,20.421,20.0]
[1680589780366,17.0,20.433,20.421,20.0]
[1680589781765,20.0,20.436,20.421,20.0]
[1680589781951,20.0,20.437,20.421,20.0]
[1680589782362,111.3889,20.438,20.424,19.584]
[1680589785468,34.65091567,20.445,20.424,19.584]
[1680589785860,20.0,20.444,20.424,19.584]
[1680589786059,17.0,20.438,20.424,19.584]
[1680589790768,37.0,20.438,20.424,19.584]
[1680589792270,20.0,20.438,20.421,20.0]
[1680589793069,20.0,20.438,20.424,19.584]
[1680589793454,17.0,20.437,20.424,19.584]
[1680589799678,20.0,20.437,20.424,19.584]
[1680589799976,17.0,20.436,20.424,19.584]
[1680589801473,17.0,20.436,20.421,20.0]
[1680589801679,20.0,20.435,20.421,20.0]
[1680589801971,37.0,20.434,20.42,19.588]
[1680589802175,37.0,20.434,20.416,127.22701293]
[1680589802369,37.0,20.434,20.416,146.81901293]
[1680589802774,20.0,20.433,20.416,146.81901293]
[1680589802976,17.0,20.432,20.416,146.81901293]
[1680589803178,17.0,20.432,20.416,131.8894]
[1680589803776,20.0,20.431,20.416,131.8894]
[1680589803966,17.0,20.43,20.416,131.8894]
[1680589807175,17.0,20.43,20.416,112.2974]
[1680589811776,14.59860358,20.433,20.416,112.2974]
[1680589811972,20.0,20.434,20.416,131.8894]
[1680589812176,34.80262413,20.434,20.416,131.8894]
[1680589812574,20.0,20.433,20.416,131.8894]
[1680589813081,17.0,20.432,20.416,112.2974]
[1680589813599,20.0,20.431,20.416,112.2974]
[1680589813799,17.0,20.43,20.416,112.2974]
[1680589814583,20.0,20.429,20.416,112.2974]
[1680589814780,17.0,20.428,20.416,112.2974]
[1680589815579,20.0,20.427,20.416,112.2974]
[1680589815794,17.0,20.426,20.416,112.2974]
[1680589820502,17.0,20.426,20.41,48.077]
[1680589820791,20.0,20.425,20.41,48.077]
[1680589820997,17.0,20.424,20.41,48.077]
[1680589821301,20.0,20.423,20.41,48.077]
[1680589821486,17.0,20.422,20.41,48.077]
[1680589822197,20.0,20.423,20.41,48.077]
[1680589822396,17.0,20.422,20.41,48.077]
[1680589827113,17.0,20.422,20.408,108.923]
[1680589830411,17.0,20.422,20.408,108.923]
[1680589831902,20.0,20.426,20.408,108.923]
[1680589832103,20.0,20.426,20.409,19.598]
[1680589833304,17.0,20.425,20.409,19.598]
[1680589833503,20.0,20.424,20.409,19.598]
[1680589833705,17.0,20.423,20.409,19.598]
[1680589844620,17.0,20.423,20.408,116.27645008]
[1680589845311,20.0,20.422,20.408,116.27645008]
[1680589845619,17.0,20.421,20.408,116.27645008]
[1680589847606,17.0,20.421,20.408,108.923]
[1680589848222,20.0,20.42,20.408,108.923]
[1680589848421,17.0,20.419,20.408,108.923]
[1680589849722,20.0,20.424,20.408,108.923]
[1680589849916,20.0,20.426,20.408,108.923]
[1680589851024,17.0,20.425,20.408,108.923]
[1680589851219,20.0,20.424,20.408,108.923]
[1680589851418,20.0,20.426,20.409,17.0]
[1680589851818,20.0,20.428,20.409,24.35345008]
[1680589852625,17.0,20.427,20.41,20.0]
[1680589852827,20.0,20.426,20.41,20.0]
[1680589853123,17.0,20.425,20.41,20.0]
[1680589853430,118.4193,20.43,20.412,19.596]
[1680589853721,118.4193,20.43,20.413,27.35345008]
[1680589854510,17.0,20.429,20.413,27.35345008]
[1680589855316,20.0,20.431,20.413,27.35345008]
[1680589855516,20.0,20.431,20.416,19.592]
[1680589855923,20.0,20.431,20.417,17.0]
[1680589856228,20.0,20.431,20.418,27.35345008]
[1680589856422,20.0,20.431,20.42,28.33]
[1680589856617,76.43,20.45,20.42,28.33]
[1680589856618,116.9099,20.448,20.423,19.585]
[1680589856829,136.9099,20.448,20.423,19.585]
[1680589857022,20.0,20.447,20.423,19.585]
[1680589857222,20.0,20.447,20.424,7.35345008]
[1680589857428,20.0,20.446,20.426,19.582]
[1680589858034,20.0,20.445,20.424,7.35345008]
[1680589858223,20.0,20.444,20.424,7.35345008]
[1680589858423,17.0,20.443,20.424,7.35345008]
[1680589858824,20.0,20.442,20.424,7.35345008]
[1680589859026,20.0,20.44,20.424,7.35345008]
[1680589859430,20.0,20.44,20.424,26.93745008]
[1680589859736,20.0,20.442,20.424,26.93745008]
[1680589860631,17.0,20.441,20.424,26.93745008]
[1680589860937,20.0,20.442,20.424,26.93745008]
[1680589861441,20.0,20.443,20.424,26.93745008]
[1680589861733,20.0,20.444,20.424,26.93745008]
[1680589861939,20.0,20.444,20.43,47.968]
[1680589862125,20.0,20.446,20.43,47.968]
[1680589862934,20.0,20.445,20.43,47.968]
[1680589863133,20.0,20.444,20.43,47.968]
[1680589864521,20.0,20.446,20.43,28.39]
[1680589864937,20.0,20.446,20.428,116.0649]
[1680589864938,20.0,20.445,20.428,116.0649]
[1680589865135,20.0,20.444,20.428,116.0649]
[1680589865341,20.0,20.444,20.427,119.688]
[1680589865536,17.0,20.443,20.427,119.688]
[1680589865927,20.0,20.442,20.427,119.688]
[1680589866230,17.0,20.441,20.427,119.688]
[1680589867950,20.0,20.44,20.427,119.688]
[1680589868151,17.0,20.439,20.427,119.688]
[1680589868924,17.0,20.439,20.421,118.3531]
[1680589868925,40.0,20.438,20.421,118.3531]
[1680589869142,40.0,20.438,20.42,28.52]
[1680589869143,17.0,20.437,20.42,28.52]
[1680589869644,20.0,20.436,20.42,28.52]
[1680589869943,20.0,20.434,20.42,28.52]
[1680589870242,37.0,20.433,20.419,59.96625489]
[1680589872232,37.0,20.433,20.416,151.37123215]
[1680589872542,37.0,20.433,20.416,131.77923215]
[1680589872745,37.0,20.433,20.417,7.35345008]
[1680589873335,20.0,20.432,20.417,7.35345008]
[1680589873534,17.0,20.431,20.417,7.35345008]
[1680589873735,20.0,20.433,20.417,67.31970497]
[1680589873949,139.6999,20.438,20.417,67.31970497]
[1680589873950,17.0,20.432,20.418,20.0]
[1680589874134,17.0,20.432,20.418,7.35345008]
[1680589874341,17.0,20.432,20.419,67.31970497]
[1680589874631,139.6999,20.438,20.42,87.31970497]
[1680589874940,17.0,20.437,20.421,67.31970497]
[1680589875338,17.0,20.437,20.422,27.35345008]
[1680589875639,17.0,20.437,20.423,7.35345008]
[1680589882844,20.0,20.436,20.423,7.35345008]
[1680589883158,17.0,20.435,20.423,7.35345008]
[1680589883543,20.0,20.434,20.423,7.35345008]
[1680589883850,20.0,20.432,20.423,7.35345008]
[1680589884049,17.0,20.431,20.423,7.35345008]
[1680589885561,17.0,20.431,20.422,20.0]
[1680589885747,17.0,20.431,20.421,67.31970497]
[1680589885951,17.0,20.431,20.421,59.96625489]
[1680589886150,17.0,20.431,20.416,188.55173836]
[1680589886554,17.0,20.431,20.417,59.96625489]
[1680589886964,17.0,20.431,20.417,67.31970497]
[1680589891670,20.0,20.43,20.417,67.31970497]
[1680589891870,17.0,20.429,20.417,67.31970497]
[1680589892255,17.0,20.431,20.417,67.31970497]
[1680589894378,17.0,20.431,20.417,7.35345008]
[1680589895055,133.6828,20.431,20.417,7.35345008]
[1680589902473,133.6828,20.431,20.413,61.09467743]
[1680589902779,133.6828,20.431,20.414,7.35345008]
[1680589904159,148.37357524,20.431,20.414,7.35345008]
[1680589904978,131.37357524,20.431,20.414,7.35345008]
[1680589905286,131.37357524,20.431,20.414,67.31970497]
[1680589905767,131.37357524,20.431,20.415,7.35345008]
[1680589906479,17.0,20.43,20.415,7.35345008]
[1680589906787,20.0,20.429,20.415,7.35345008]
[1680589906971,17.0,20.428,20.415,7.35345008]
[1680589907572,20.0,20.429,20.415,7.35345008]
[1680589907885,17.0,20.428,20.415,7.35345008]
[1680589909484,37.0,20.43,20.415,7.35345008]
[1680589910085,37.0,20.43,20.414,59.96625489]
[1680589910489,37.0,20.43,20.415,7.35345008]
[1680589911482,17.0,20.43,20.415,7.35345008]
[1680589912176,37.0,20.43,20.415,7.35345008]
[1680589927798,17.0,20.43,20.415,7.35345008]
[1680589928794,37.0,20.43,20.415,7.35345008]
[1680589931293,17.0,20.43,20.415,7.35345008]
[1680589932601,37.0,20.43,20.415,7.35345008]
[1680589933203,17.0,20.43,20.415,7.35345008]
[1680589933803,20.0,20.429,20.415,7.35345008]
[1680589933990,17.0,20.428,20.415,7.35345008]
[1680589935593,115.1772,20.427,20.415,7.35345008]
[1680589936085,17.0,20.426,20.415,7.35345008]
[1680589944001,17.0,20.426,20.415,67.31970497]
[1680589944401,17.0,20.426,20.416,7.35345008]
[1680589952522,17.0,20.426,20.415,59.96625489]
[1680589953525,17.0,20.426,20.416,7.35345008]
[1680589954632,131.37357524,20.431,20.416,7.35345008]
[1680589955133,17.0,20.43,20.416,7.35345008]
[1680589955922,17.0,20.43,20.417,20.0]
[1680589956322,17.0,20.43,20.417,27.35345008]
[1680589956522,17.0,20.43,20.417,7.35345008]
[1680589960521,37.0,20.43,20.417,7.35345008]
[1680589961531,17.0,20.43,20.417,7.35345008]
[1680589964040,37.0,20.43,20.417,7.35345008]
[1680589964633,17.0,20.43,20.417,7.35345008]
[1680589965143,37.0,20.43,20.417,7.35345008]